bitfinex/quotes_BTCUSD_20250408
["timestamp","ask_amount","ask_price","bid_price","bid_amount"]
[1744151191297,0.208075,76896.0,76891.0,0.12625864]
[1744151191716,0.013004,76895.0,76891.0,0.12625864]
[1744151191923,0.20811,76883.0,76874.0,0.013008]
[1744151192124,0.20811,76883.0,76875.0,0.17102994]
[1744151192125,0.221134,76876.0,76875.0,0.17102994]
[1744151192487,0.221134,76876.0,76875.0,0.12625864]
[1744151193057,0.221134,76876.0,76875.0,0.12667754]
[1744151193299,0.561134,76876.0,76875.0,0.0004189]
[1744151194191,0.353007,76876.0,76875.0,0.0004189]
[1744151194554,0.353007,76876.0,76875.0,0.0044189]
[1744151194756,0.400007,76876.0,76875.0,0.0064189]
[1744151195019,0.400007,76876.0,76875.0,0.0024189]
[1744151195179,0.400007,76876.0,76875.0,9e-07]
[1744151195393,0.400007,76876.0,76875.0,0.0010009]
[1744151195573,0.400007,76876.0,76875.0,0.001]
[1744151195793,0.400007,76876.0,76845.0,0.221222]
[1744151195794,0.013011,76855.0,76845.0,0.221222]
[1744151196004,0.013011,76855.0,76854.0,0.25384861]
[1744151196214,0.013011,76857.0,76854.0,0.25384861]
[1744151196561,0.01301,76861.0,76854.0,0.25384861]
[1744151196562,0.221184,76859.0,76855.0,0.12625864]
[1744151196767,0.221192,76856.0,76855.0,0.12625864]
[1744151197659,0.013011,76855.0,76854.0,0.006]
[1744151197899,0.013011,76855.0,76854.0,0.13025864]
[1744151198171,0.013011,76855.0,76854.0,0.12625864]
[1744151198338,0.221189,76858.0,76855.0,0.002]
[1744151198754,0.208181,76856.0,76855.0,0.03494606]
[1744151198955,0.221192,76856.0,76855.0,0.03494606]
[1744151199209,0.013011,76857.0,76854.0,0.13025864]
[1744151199648,0.01301,76861.0,76856.0,0.221192]
[1744151199862,0.34,76864.0,76857.0,0.12625864]
[1744151200062,0.01301,76859.0,76858.0,0.05596426]
[1744151200230,0.34,76864.0,76858.0,0.05596426]
[1744151200231,0.34,76864.0,76858.0,0.1822229]
[1744151200429,0.34,76871.0,76862.0,0.01301]
[1744151200631,0.22116,76868.0,76863.0,0.12625864]
[1744151200840,0.22116,76868.0,76864.0,0.01265446]
[1744151201051,0.22116,76868.0,76865.0,0.12625864]
[1744151201584,0.221162,76867.0,76865.0,0.12625864]
[1744151202037,0.22416,76868.0,76865.0,0.12625864]
[1744151202258,0.003,76868.0,76867.0,0.013009]
[1744151202484,0.003,76868.0,76867.0,0.1952319]
[1744151203300,0.208135,76874.0,76869.0,0.013009]
[1744151203489,0.013008,76874.0,76870.0,0.12625864]
[1744151203794,0.013008,76873.0,76870.0,0.12625864]
[1744151204351,0.221148,76871.0,76870.0,0.12625864]
[1744151204758,0.22118,76861.0,76854.0,0.221195]
[1744151204953,0.22118,76861.0,76855.0,0.12625864]
[1744151205139,0.013011,76856.0,76855.0,0.12625864]
[1744151205370,0.221183,76860.0,76855.0,0.12625864]
[1744151205579,0.548149,76868.0,76858.0,0.208176]
[1744151205781,0.208159,76864.0,76859.0,0.13926864]
[1744151206005,0.01301,76863.0,76860.0,0.03604556]
[1744151206219,0.221175,76862.0,76860.0,0.1623042]
[1744151206421,0.013011,76854.0,76850.0,0.0099504]
[1744151206629,0.221194,76856.0,76851.0,0.12625864]
[1744151206829,0.208189,76853.0,76851.0,0.12625864]
[1744151207029,0.221194,76856.0,76851.0,0.12625864]
[1744151207030,0.208186,76855.0,76851.0,0.12625864]
[1744151207238,0.013011,76856.0,76851.0,0.12625864]
[1744151207685,0.208184,76855.0,76851.0,0.12625864]
[1744151207840,0.221191,76857.0,76851.0,0.33445064]
[1744151208040,0.013011,76856.0,76851.0,0.12625864]
[1744151208242,0.208192,76852.0,76851.0,0.13025864]
[1744151208557,0.208192,76852.0,76851.0,0.13325864]
[1744151209121,0.013011,76853.0,76851.0,0.13325864]
[1744151209314,0.2212,76854.0,76851.0,0.13325864]
[1744151209514,0.221203,76853.0,76851.0,0.13338418]
[1744151209727,0.013012,76852.0,76851.0,0.00712554]
[1744151209930,0.013012,76852.0,76851.0,0.00312554]
[1744151210127,0.013012,76852.0,76851.0,0.00712554]
[1744151210343,0.013012,76852.0,76851.0,0.00412554]
[1744151210544,0.013012,76852.0,76851.0,0.00012554]
[1744151210716,0.013012,76852.0,76851.0,0.00412554]
[1744151211120,0.013012,76852.0,76851.0,0.00312554]
[1744151211423,0.016012,76852.0,76851.0,0.00312554]
[1744151211656,0.016012,76852.0,76851.0,0.00012554]
[1744151211872,0.14735529,76854.0,76851.0,0.00012554]
[1744151212047,0.013012,76852.0,76851.0,0.00012554]
[1744151213290,0.353012,76852.0,76851.0,0.00012554]
[1744151214165,0.563204,76852.0,76851.0,0.00012554]
[1744151214585,0.561204,76852.0,76851.0,0.00012554]
[1744151214819,0.34,76853.0,76851.0,0.12638418]
[1744151214974,0.004,76852.0,76851.0,0.22132954]
[1744151215336,0.004,76852.0,76851.0,0.12638418]
[1744151215480,0.006,76852.0,76851.0,0.13939618]
[1744151215686,0.54818,76857.0,76851.0,0.13939618]
[1744151215902,0.221199,76854.0,76852.0,0.12625864]
[1744151216573,0.013011,76853.0,76852.0,0.12625864]
[1744151216776,0.20813,76875.0,76862.0,0.01301]
[1744151217094,0.22113,76878.0,76871.0,0.21749057]
[1744151217274,0.34,76877.0,76872.0,0.3717525]
[1744151217484,0.22113,76878.0,76872.0,0.1506095]
[1744151217687,0.013007,76877.0,76872.0,0.1506095]
[1744151217887,0.34,76876.0,76872.0,0.1506095]
[1744151218097,0.34,76874.0,76873.0,0.04426786]
[1744151218274,0.208131,76875.0,76873.0,0.1705265]
[1744151218475,0.208131,76875.0,76874.0,0.12625864]
[1744151218684,0.548131,76875.0,76874.0,0.12625864]
[1744151218884,0.561139,76875.0,76874.0,0.12625864]
[1744151219295,0.353008,76875.0,76874.0,0.12625864]
[1744151220472,0.357008,76875.0,76874.0,0.12625864]
[1744151220777,0.357008,76875.0,76853.0,0.220731]
[1744151220778,0.013009,76866.0,76853.0,0.220731]
[1744151221014,0.01301,76861.0,76854.0,0.12625864]
[1744151221212,0.208176,76858.0,76854.0,0.12625864]
[1744151221416,0.01301,76861.0,76856.0,0.208181]
[1744151221597,0.208167,76862.0,76856.0,0.221192]
[1744151221956,0.221174,76863.0,76857.0,0.33443464]
[1744151222160,0.01301,76861.0,76857.0,0.12625864]
[1744151222680,0.013009,76865.0,76857.0,0.13926964]
[1744151223016,0.22117,76864.0,76858.0,0.03160178]
[1744151223189,0.01301,76862.0,76859.0,0.12625864]
[1744151223394,0.01301,76860.0,76859.0,0.12625864]
[1744151223593,0.208157,76866.0,76859.0,0.13926864]
[1744151223797,0.221166,76866.0,76859.0,0.13926864]
[1744151224293,0.221166,76866.0,76860.0,0.05185776]
[1744151224613,0.221168,76865.0,76861.0,0.12625864]
[1744151226105,0.221168,76865.0,76861.0,0.12825864]
[1744151226306,0.34,76869.0,76861.0,0.12825864]
[1744151226531,0.548148,76869.0,76862.0,0.02977096]
[1744151226768,0.548148,76869.0,76863.0,0.12625864]
[1744151227361,0.34,76867.0,76863.0,0.12625864]
[1744151227535,0.221165,76866.0,76863.0,0.12625864]
[1744151227743,0.34,76867.0,76863.0,0.12625864]
[1744151227972,0.208126,76877.0,76863.0,0.12625864]
[1744151227973,0.208074,76896.0,76889.0,0.013005]
[1744151228296,0.221074,76897.0,76887.0,0.013006]
[1744151228538,0.013005,76890.0,76866.0,0.00260122]
[1744151228725,0.208131,76875.0,76868.0,0.208147]
[1744151228917,0.36556938,76880.0,76869.0,0.12625864]
[1744151228918,0.013008,76870.0,76869.0,0.12625864]
[1744151229279,0.208151,76868.0,76862.0,0.01301]
[1744151229476,0.01342631,76870.0,76863.0,0.13926864]
[1744151229731,0.00041831,76870.0,76865.0,0.013009]
[1744151229897,0.00041831,76870.0,76869.0,0.208146]
[1744151230107,0.00041831,76870.0,76869.0,0.34741364]
[1744151231193,0.00041831,76870.0,76869.0,0.34841364]
[1744151231644,0.00041831,76870.0,76869.0,0.34941364]
[1744151232442,0.00041831,76870.0,76869.0,0.002]
[1744151232631,0.208201,76849.0,76838.0,0.013014]
[1744151232849,0.013011,76857.0,76830.0,0.0463]
[1744151232850,0.35256238,76860.0,76845.0,0.13789773]
[1744151233013,0.08169214,76870.0,76854.0,0.013011]
[1744151233014,0.35298069,76870.0,76854.0,0.013011]
[1744151233223,0.01301,76862.0,76855.0,0.12625864]
[1744151233426,0.208172,76860.0,76855.0,0.12625864]
[1744151233628,0.548169,76861.0,76855.0,0.12625864]
[1744151233830,0.561224,76845.0,76844.0,0.11599088]
[1744151234060,0.656424,76845.0,76844.0,0.12799088]
[1744151234229,0.656424,76845.0,76816.0,0.060718]
[1744151234230,0.20829,76816.0,76810.0,0.013019]
[1744151234434,0.20829,76816.0,76812.0,0.12625864]
[1744151234844,0.013016,76827.0,76812.0,0.12625864]
[1744151234845,0.013011,76853.0,76844.0,0.008]
[1744151235046,0.353013,76845.0,76844.0,0.008]
[1744151235253,0.344,76845.0,76844.0,0.008]
[1744151235588,0.34,76845.0,76844.0,0.008]
[1744151235918,0.548207,76847.0,76844.0,0.008]
[1744151236116,0.34,76847.0,76844.0,0.12625864]
[1744151236321,0.34,76847.0,76845.0,0.1610077]
[1744151236322,0.548207,76847.0,76845.0,0.1610077]
[1744151236731,0.221224,76845.0,76844.0,0.00012554]
[1744151237707,0.353013,76845.0,76844.0,0.00012554]
[1744151238116,0.356013,76845.0,76844.0,0.00012554]
[1744151239444,0.360013,76845.0,76844.0,0.00012554]
[1744151240102,0.356013,76845.0,76844.0,0.00012554]
[1744151240251,0.353013,76845.0,76844.0,0.00012554]
[1744151240457,0.357013,76845.0,76844.0,0.00012554]
[1744151240659,0.361013,76845.0,76844.0,0.00012554]
[1744151240917,0.353013,76845.0,76844.0,0.00012554]
[1744151241294,0.362013,76845.0,76844.0,0.00012554]
[1744151241478,0.358013,76845.0,76844.0,0.00012554]
[1744151241677,0.363013,76845.0,76844.0,0.00012554]
[1744151242281,0.358013,76845.0,76844.0,0.00012554]
[1744151242834,0.363013,76845.0,76844.0,0.00012554]
[1744151243727,0.353013,76845.0,76844.0,0.00012554]
[1744151243891,0.364013,76845.0,76844.0,0.00112554]
[1744151245338,0.412513,76845.0,76844.0,0.00112554]
[1744151247016,0.364013,76845.0,76844.0,0.00112554]
[1744151248036,0.024013,76845.0,76844.0,0.00112554]
[1744151249149,0.19927164,76845.0,76844.0,5.4e-07]
[1744151249301,0.3130351,76845.0,76844.0,5.4e-07]
[1744151249502,0.013018,76814.0,76812.0,0.00977015]
[1744151249702,0.013018,76814.0,76811.0,0.00052567]
[1744151249703,0.208298,76813.0,76811.0,0.00052567]
[1744151249929,0.221316,76813.0,76812.0,0.01219718]
[1744151250925,0.013018,76812.0,76811.0,0.00047872]
[1744151251306,0.13927664,76812.0,76811.0,0.00047872]
[1744151251863,0.13927664,76812.0,76782.0,0.02518929]
[1744151251864,0.221402,76783.0,76782.0,0.01216629]
[1744151252121,0.221402,76783.0,76752.0,0.208461]
[1744151252122,0.221463,76762.0,76750.0,0.08303027]
[1744151252340,0.221463,76762.0,76761.0,0.11702783]
[1744151252578,0.26196599,76762.0,76761.0,0.11702783]
[1744151252832,0.221463,76762.0,76761.0,0.11702783]
[1744151253074,0.23489147,76762.0,76761.0,0.11702783]
[1744151253340,0.23489147,76762.0,76761.0,0.11802783]
[1744151253955,0.23489147,76762.0,76761.0,0.11702783]
[1744151254209,0.39788092,76771.0,76764.0,0.013026]
[1744151254373,0.39788092,76771.0,76765.0,0.02693395]
[1744151254578,0.41090592,76771.0,76765.0,0.02693395]
[1744151254779,0.39788092,76771.0,76765.0,0.23536095]
[1744151255055,0.61931892,76771.0,76765.0,0.02693395]
[1744151255424,0.013025,76770.0,76765.0,0.013026]
[1744151255851,0.39788092,76771.0,76768.0,0.013026]
[1744151256021,0.013024,76779.0,76771.0,0.013025]
[1744151256201,0.013024,76779.0,76771.0,0.221436]
[1744151256202,0.221422,76777.0,76771.0,0.221436]
[1744151256414,0.221422,76777.0,76770.0,0.013025]
[1744151256415,0.013023,76785.0,76778.0,0.221414]
[1744151256609,0.39788092,76800.0,76795.0,0.013021]
[1744151256812,0.61923392,76800.0,76794.0,0.208347]
[1744151257032,0.61923392,76800.0,76780.0,0.221411]
[1744151257033,0.208357,76791.0,76780.0,0.221411]
[1744151257208,0.208376,76784.0,76781.0,0.03606936]
[1744151257408,0.208404,76774.0,76771.0,0.001]
[1744151257616,0.013025,76775.0,76772.0,0.12625864]
[1744151257815,0.013022,76788.0,76780.0,0.013024]
[1744151258064,0.60624292,76790.0,76784.0,0.013023]
[1744151258241,0.013023,76786.0,76781.0,0.208384]
[1744151258444,0.60624092,76790.0,76782.0,0.04429032]
[1744151258601,0.208365,76788.0,76782.0,0.04429032]
[1744151258832,0.39788092,76790.0,76788.0,0.221387]
[1744151259044,0.013022,76792.0,76785.0,0.221397]
[1744151259241,0.013022,76792.0,76788.0,8.017e-05]
[1744151259666,0.013022,76789.0,76788.0,8.017e-05]
[1744151260708,0.221385,76789.0,76788.0,8.017e-05]
[1744151261110,0.25219065,76789.0,76788.0,8.017e-05]
[1744151261312,0.25819065,76789.0,76788.0,8.017e-05]
[1744151261524,0.227385,76789.0,76788.0,8.017e-05]
[1744151262302,0.35364364,76789.0,76788.0,8.017e-05]
[1744151262558,0.35064364,76789.0,76788.0,8.017e-05]
[1744151262992,0.35164364,76789.0,76788.0,8.017e-05]
[1744151263209,0.7810832,76789.0,76788.0,8.017e-05]
[1744151263435,0.80062405,76789.0,76788.0,1.7e-07]
[1744151263664,0.80562405,76789.0,76788.0,1.7e-07]
[1744151264071,0.81462405,76789.0,76788.0,0.00100017]
[1744151264289,0.80562405,76789.0,76788.0,0.00100017]
[1744151264512,0.71618449,76789.0,76788.0,0.00100017]
[1744151264720,0.70564364,76789.0,76788.0,0.00100017]
[1744151264960,0.69664364,76789.0,76788.0,0.00100017]
[1744151265376,0.68764364,76789.0,76788.0,1.7e-07]
[1744151265828,0.69664364,76789.0,76788.0,1.7e-07]
[1744151266293,0.70564364,76789.0,76788.0,1.7e-07]
[1744151266773,0.8214832,76789.0,76788.0,1.7e-07]
[1744151267011,0.8304832,76789.0,76788.0,1.7e-07]
[1744151267840,0.221434,76772.0,76766.0,0.013026]
[1744151269063,0.227434,76772.0,76767.0,0.013026]
[1744151269264,0.227434,76772.0,76765.0,0.221453]
[1744151269467,0.227434,76772.0,76766.0,0.208423]
[1744151269654,0.233434,76772.0,76765.0,0.221453]
[1744151271204,0.233434,76772.0,76758.0,0.221474]
[1744151271421,0.233434,76772.0,76752.0,0.34]
[1744151271637,0.233434,76772.0,76758.0,0.208447]
[1744151271853,0.233434,76772.0,76760.0,0.013027]
[1744151272076,0.233434,76772.0,76758.0,0.208447]
[1744151272298,0.233434,76772.0,76755.0,0.013028]
[1744151272514,0.233434,76772.0,76757.0,0.013028]
[1744151272662,0.233434,76772.0,76757.0,0.221476]
[1744151273089,0.233434,76772.0,76758.0,0.208445]
[1744151273293,0.233434,76772.0,76751.0,0.0004]
[1744151273895,0.025025,76772.0,76765.0,0.221453]
[1744151274113,0.012,76772.0,76768.0,0.013026]
[1744151274276,0.012,76772.0,76768.0,0.208419]
[1744151274676,0.025025,76772.0,76766.0,0.013026]
[1744151274880,0.025025,76772.0,76765.0,0.221453]
[1744151275093,0.025025,76772.0,76753.0,0.013028]
[1744151275297,0.025025,76772.0,76756.0,0.20845]
[1744151276121,0.025025,76772.0,76758.0,0.208445]
[1744151276330,0.025025,76772.0,76748.0,0.013029]
[1744151276483,0.025025,76772.0,76750.0,0.221495]
[1744151277688,0.025025,76772.0,76745.0,0.21824415]
[1744151277888,0.15128364,76772.0,76745.0,0.34]
[1744151278126,0.15128364,76772.0,76744.0,0.221513]
[1744151278328,0.15128364,76772.0,76747.0,0.013029]
[1744151278549,0.15128364,76772.0,76748.0,0.208472]
[1744151279070,0.15128364,76772.0,76741.0,0.221522]
[1744151279071,0.59398364,76772.0,76771.0,4e-07]
[1744151279186,0.69008085,76772.0,76771.0,4e-07]
[1744151279592,0.221491,76752.0,76726.0,0.34]
[1744151279795,0.221491,76752.0,76728.0,0.34]
[1744151280035,0.34774964,76752.0,76724.0,0.00962691]
[1744151280213,0.34774964,76752.0,76729.0,0.013032]
[1744151280410,0.34774964,76752.0,76727.0,0.013033]
[1744151280794,0.34774964,76752.0,76724.0,0.22157]
[1744151280906,0.34774964,76752.0,76728.0,0.221561]
[1744151281108,0.221491,76752.0,76735.0,0.013031]
[1744151281316,0.221491,76752.0,76739.0,0.208496]
[1744151281515,0.221491,76752.0,76732.0,0.013032]
[1744151281516,0.19904,76754.0,76750.0,0.208468]
[1744151281722,0.013028,76752.0,76742.0,0.208487]
[1744151281952,0.020028,76752.0,76742.0,0.20849]
[1744151282145,0.020028,76752.0,76746.0,0.013029]
[1744151282146,0.027028,76752.0,76746.0,0.013029]
[1744151282348,0.014,76752.0,76749.0,0.013029]
[1744151282525,0.027028,76752.0,76746.0,0.013029]
[1744151282719,0.013028,76752.0,76745.0,0.20848]
[1744151282926,0.013028,76757.0,76744.0,0.01303]
[1744151282927,0.212066,76767.0,76760.0,0.221468]
[1744151283151,0.013026,76767.0,76760.0,0.013027]
[1744151283520,0.221462,76763.0,76756.0,0.013028]
[1744151283729,0.208441,76761.0,76756.0,0.13928664]
[1744151284153,0.221468,76760.0,76751.0,0.0004]
[1744151284392,0.39782297,76761.0,76751.0,0.013429]
[1744151284574,0.41084797,76770.0,76761.0,0.221464]
[1744151284921,0.013026,76764.0,76754.0,0.013028]
[1744151285207,0.013027,76761.0,76755.0,0.13928664]
[1744151285348,0.208438,76762.0,76756.0,0.208451]
[1744151285554,0.013028,76753.0,76751.0,0.0004]
[1744151286309,0.013028,76752.0,76751.0,0.0004]
[1744151286506,0.20845,76757.0,76752.0,0.221491]
[1744151286708,0.014026,76764.0,76753.0,0.12625864]
[1744151287017,0.013027,76762.0,76756.0,0.013028]
[1744151287165,0.002,76761.0,76760.0,0.013027]
[1744151287372,0.002,76761.0,76760.0,0.13928564]
[1744151287795,0.015027,76761.0,76742.0,0.02272009]
[1744151287997,0.015027,76761.0,76720.0,1.03212]
[1744151287998,0.221491,76752.0,76735.0,0.34]
[1744151288203,0.221491,76752.0,76738.0,0.013031]
[1744151288401,0.221491,76752.0,76739.0,0.266727]
[1744151288602,0.221491,76752.0,76742.0,0.221518]
[1744151288951,0.221491,76752.0,76741.0,0.208492]
[1744151289173,0.221491,76752.0,76741.0,0.221522]
[1744151290261,0.221485,76755.0,76749.0,0.013029]
[1744151290262,0.013028,76755.0,76749.0,0.013029]
[1744151290401,0.013028,76754.0,76749.0,0.013029]
[1744151290870,0.22149,76753.0,76747.0,0.208475]
[1744151291565,0.013028,76752.0,76746.0,0.221506]
[1744151291770,0.013028,76752.0,76730.0,0.013032]
[1744151291917,0.013028,76752.0,76730.0,0.0452]
[1744151292125,0.013028,76752.0,76729.0,0.013032]
[1744151292318,0.207108,76752.0,76729.0,0.013032]
[1744151292702,0.547108,76752.0,76723.0,0.208541]
[1744151292857,0.550108,76752.0,76723.0,0.208541]
[1744151293023,0.208537,76725.0,76721.0,0.0452]
[1744151293219,0.013032,76730.0,76722.0,0.17971644]
[1744151293459,0.013032,76730.0,76725.0,0.208535]
[1744151293636,0.013032,76729.0,76722.0,0.19275044]
[1744151293842,0.208535,76726.0,76722.0,0.34783464]
[1744151294051,0.208538,76725.0,76722.0,0.12625864]
[1744151294253,0.208538,76725.0,76722.0,0.12638426]
[1744151294651,0.208535,76726.0,76722.0,0.12638426]
[1744151295061,0.208535,76726.0,76722.0,0.33492726]
[1744151295263,0.001,76725.0,76722.0,0.33492726]
[1744151295475,0.209538,76725.0,76722.0,0.12638426]
[1744151295749,0.013033,76723.0,76722.0,0.12638426]
[1744151295971,0.013033,76723.0,76722.0,0.00012562]
[1744151298701,0.014033,76723.0,76722.0,0.00012562]
[1744151298902,0.001,76723.0,76722.0,0.20867062]
[1744151299102,0.222575,76723.0,76722.0,0.00012562]
[1744151299313,0.221575,76723.0,76722.0,0.00012562]
[1744151302315,0.561575,76723.0,76722.0,0.00012562]
[1744151306499,0.563575,76723.0,76722.0,0.00012562]
[1744151308267,0.566575,76723.0,76722.0,0.00012562]
[1744151308425,0.571575,76723.0,76722.0,0.00012562]
[1744151308625,0.566575,76723.0,76722.0,0.00012562]
[1744151308954,0.568575,76723.0,76722.0,0.00012562]
[1744151309289,0.575575,76723.0,76722.0,0.00012562]
[1744151309816,0.354,76723.0,76722.0,0.00012562]
[1744151310016,0.575575,76723.0,76722.0,0.00012562]
[1744151310647,0.367033,76723.0,76722.0,0.00012562]
[1744151311400,0.014,76723.0,76722.0,0.00012562]
[1744151311635,0.014,76723.0,76722.0,0.36883152]
[1744151311841,0.0489,76763.0,76722.0,0.40109752]
[1744151312064,0.208467,76751.0,76746.0,0.013029]
[1744151312283,0.221499,76750.0,76744.0,0.208485]
[1744151312480,0.221499,76750.0,76745.0,0.0443033]
[1744151312833,0.221463,76762.0,76757.0,0.208448]
[1744151312961,0.20842,76768.0,76761.0,0.013027]
[1744151313156,0.013024,76776.0,76768.0,0.013026]
[1744151313363,0.013025,76774.0,76765.0,0.208428]
[1744151313621,0.33775213,76769.0,76765.0,0.1414898]
[1744151313756,0.33775213,76769.0,76734.0,1.03292]
[1744151313757,0.208428,76765.0,76756.0,0.013028]
[1744151313961,0.353026,76766.0,76760.0,0.013027]
[1744151314182,0.11630713,76769.0,76768.0,0.20842]
[1744151314416,0.11630713,76769.0,76768.0,0.221446]
[1744151314620,0.11630713,76769.0,76765.0,0.221454]
[1744151314621,0.00041769,76769.0,76767.0,0.221446]
[1744151314787,0.00041769,76769.0,76768.0,0.0455929]
[1744151315195,0.00041769,76769.0,76765.0,0.013026]
[1744151315423,0.353026,76768.0,76765.0,0.12625864]
[1744151315623,0.013026,76764.0,76755.0,0.013028]
[1744151315833,0.013027,76763.0,76756.0,0.13928664]
[1744151316144,0.22146,76763.0,76757.0,0.03738056]
[1744151316303,0.221465,76762.0,76758.0,0.12625864]
[1744151317314,0.221468,76761.0,76758.0,0.12625864]
[1744151317624,0.35444369,76769.0,76763.0,0.013027]
[1744151317829,0.221448,76768.0,76764.0,0.1401872]
[1744151318035,0.221471,76759.0,76758.0,0.003]
[1744151318174,0.221471,76759.0,76758.0,0.12625864]
[1744151318378,0.221471,76759.0,76758.0,0.13025864]
[1744151318581,0.013027,76759.0,76758.0,0.13025864]
[1744151318779,0.013027,76759.0,76758.0,0.14344779]
[1744151319086,0.208435,76763.0,76758.0,0.14344779]
[1744151319087,0.208431,76764.0,76759.0,0.208444]
[1744151319280,0.208436,76762.0,76759.0,0.12625864]
[1744151319486,0.221463,76762.0,76759.0,0.12625864]
[1744151319995,0.221457,76764.0,76759.0,0.34772864]
[1744151320199,0.00041769,76769.0,76764.0,0.013026]
[1744151320332,0.013026,76768.0,76762.0,0.013027]
[1744151320533,0.013026,76768.0,76763.0,0.12625864]
[1744151321275,0.013026,76767.0,76763.0,0.12625864]
[1744151321479,0.013026,76767.0,76762.0,0.013027]
[1744151321480,0.013028,76755.0,76752.0,0.00957681]
[1744151321679,0.20845,76757.0,76753.0,0.14806362]
[1744151321998,0.20845,76757.0,76732.0,0.01454085]
[1744151321999,0.208457,76755.0,76747.0,0.21803717]
[1744151322175,0.20846,76754.0,76748.0,0.12625864]
[1744151322336,0.221485,76755.0,76748.0,0.34775964]
[1744151322538,0.221476,76758.0,76750.0,0.221497]
[1744151322738,0.208459,76754.0,76751.0,0.12625864]
[1744151322962,0.014028,76757.0,76751.0,0.12625864]
[1744151323191,0.221481,76756.0,76751.0,0.12625864]
[1744151323396,0.208463,76753.0,76751.0,0.12625864]
[1744151323571,0.221491,76753.0,76751.0,0.12625864]
[1744151323900,0.221491,76753.0,76716.0,0.417121]
[1744151323901,0.221491,76753.0,76752.0,0.007]
[1744151324087,0.013028,76754.0,76748.0,0.013029]
[1744151324257,0.013028,76753.0,76748.0,0.013029]
[1744151324463,0.013028,76753.0,76751.0,0.003]
[1744151324642,0.34,76759.0,76753.0,0.013028]
[1744151324842,0.34,76759.0,76748.0,0.221502]
[1744151324843,0.34041769,76769.0,76763.0,0.208432]
[1744151325145,0.34041769,76769.0,76761.0,0.013027]
[1744151325146,0.013027,76763.0,76758.0,0.208447]
[1744151325413,0.221464,76762.0,76759.0,0.12625864]
[1744151325569,0.221464,76762.0,76760.0,0.03607696]
[1744151325938,0.013026,76765.0,76760.0,0.03607696]
[1744151325939,0.34,76764.0,76760.0,0.1623356]
[1744151326137,0.208471,76750.0,76744.0,0.208482]
[1744151326351,0.013029,76751.0,76749.0,0.12625864]
[1744151326509,0.221492,76752.0,76749.0,0.12625864]
[1744151326720,0.20845,76759.0,76749.0,0.12625864]
[1744151326721,0.013027,76760.0,76752.0,0.22149]
[1744151326925,0.353026,76764.0,76758.0,0.221471]
[1744151327185,0.208438,76762.0,76757.0,0.208448]
[1744151327339,0.208482,76745.0,76740.0,0.208494]
[1744151327546,0.208474,76748.0,76744.0,0.208485]
[1744151327753,0.221503,76749.0,76745.0,0.12625864]
[1744151328631,0.221503,76749.0,76745.0,0.12638426]
[1744151328944,0.208462,76753.0,76745.0,0.13941426]
[1744151329152,0.208462,76753.0,76747.0,0.221504]
[1744151329354,0.208462,76753.0,76748.0,0.13928764]
[1744151329690,0.208468,76751.0,76748.0,0.12625864]
[1744151329893,0.208458,76755.0,76748.0,0.12625864]
[1744151330054,0.013027,76759.0,76753.0,0.013028]
[1744151330255,0.013028,76757.0,76754.0,0.01523146]
[1744151330639,0.10803095,76755.0,76754.0,0.01523146]
[1744151330833,0.12105895,76755.0,76754.0,0.01523146]
[1744151331653,0.221508,76746.0,76745.0,0.00012562]
[1744151331856,0.208479,76746.0,76745.0,0.00012562]
[1744151332468,0.221508,76746.0,76745.0,0.00012562]
[1744151332649,0.208479,76746.0,76745.0,0.00012562]
[1744151333062,0.221506,76747.0,76745.0,0.00012562]
[1744151333835,0.221506,76747.0,76745.0,0.00212562]
[1744151334041,0.221506,76747.0,76745.0,0.00312562]
[1744151334426,0.34,76760.0,76755.0,0.013028]
[1744151334626,0.34,76756.0,76751.0,0.208464]
[1744151334964,0.208456,76755.0,76751.0,0.12625864]
[1744151335122,0.21613473,76756.0,76751.0,0.12625864]
[1744151335330,0.416761,76783.0,76751.0,0.12625864]
[1744151335331,0.208456,76755.0,76751.0,0.12625864]
[1744151335504,0.208442,76760.0,76752.0,0.221491]
[1744151335706,0.208437,76762.0,76755.0,0.013028]
[1744151335917,0.221464,76762.0,76755.0,0.13928664]
[1744151336450,0.002,76760.0,76755.0,0.13928664]
[1744151336683,0.002,76760.0,76755.0,0.12625864]
[1744151336888,0.013027,76761.0,76755.0,0.12625864]
[1744151336889,0.22248,76756.0,76755.0,0.12625864]
[1744151337005,0.22248,76756.0,76755.0,0.1610339]
[1744151337405,0.22248,76756.0,76755.0,0.03477526]
[1744151337661,0.208474,76748.0,76747.0,0.34]
[1744151337906,0.221503,76748.0,76747.0,0.34]
[1744151339241,0.208471,76750.0,76744.0,0.548483]
[1744151339445,0.013029,76748.0,76747.0,0.342]
[1744151339640,0.208471,76750.0,76747.0,0.38883843]
[1744151339847,0.221502,76749.0,76747.0,0.38683843]
[1744151340106,0.013029,76748.0,76747.0,0.38683843]
[1744151340300,0.013029,76748.0,76747.0,0.38783843]
[1744151340645,0.013029,76748.0,76747.0,0.38683843]
[1744151340926,0.208468,76751.0,76747.0,0.38683843]
[1744151341068,0.221489,76753.0,76748.0,0.02178029]
[1744151341466,0.35348494,76757.0,76755.0,0.208453]
[1744151341716,0.013027,76761.0,76752.0,0.013028]
[1744151341926,0.013027,76761.0,76753.0,0.12625864]
[1744151342248,0.013027,76760.0,76754.0,0.01740959]
[1744151342370,0.208435,76763.0,76757.0,0.013028]
[1744151342574,0.013027,76761.0,76754.0,0.01740959]
[1744151342777,0.013027,76759.0,76754.0,0.01740959]
[1744151342989,0.013028,76757.0,76754.0,0.01740959]
[1744151343204,0.013028,76757.0,76755.0,0.02942884]
[1744151343415,0.22148,76757.0,76755.0,0.02942884]
[1744151343655,0.013028,76756.0,76755.0,0.02942884]
[1744151344058,0.013028,76756.0,76751.0,0.013029]
[1744151344059,0.221508,76746.0,76733.0,0.013032]
[1744151344309,0.221508,76746.0,76734.0,0.20851]
[1744151344616,0.221508,76746.0,76730.0,0.02270802]
[1744151344617,0.221508,76746.0,76730.0,0.00967602]